bitfinex/quotes_ETHUSD_20241106
["timestamp","ask_amount","ask_price","bid_price","bid_amount"]
[1730910969459,4.57494,2652.2,2651.7,3.77115]
[1730910969843,0.8044,2653.1,2651.8,0.84771613]
[1730910970041,0.8044,2653.1,2651.6,15.90119]
[1730910970042,4.57363,2653.1,2652.4,4.54245]
[1730910970245,0.39358256,2653.3,2653.1,3.76909]
[1730910970452,0.39358256,2653.3,2652.9,3.76937]
[1730910970688,4.57316,2653.4,2652.9,3.76937]
[1730910970859,8.34198,2653.4,2652.9,3.76937]
[1730910971180,0.8044,2653.4,2652.9,3.76937]
[1730910971384,3.76856,2653.6,2653.1,3.76916]
[1730910971587,4.56777,2653.8,2653.2,3.76899]
[1730910971588,3.76837,2653.7,2653.2,3.76899]
[1730910971795,3.76837,2653.7,2653.0,0.7691]
[1730910971796,0.7995,2653.8,2653.5,3.76849]
[1730910971955,4.56699,2654.3,2653.5,3.76856]
[1730910972162,3.76777,2654.1,2653.5,3.76856]
[1730910972367,3.76777,2654.1,2653.5,3.76851]
[1730910972759,3.76794,2654.0,2653.4,4.31872]
[1730910972958,3.76814,2653.9,2653.1,3.76909]
[1730910973166,3.76832,2653.7,2653.1,3.76909]
[1730910973388,7.53571,2654.1,2653.4,3.76866]
[1730910973686,3.76727,2654.5,2653.9,3.7679]
[1730910974247,3.76708,2654.6,2654.0,3.7678]
[1730910974590,4.54783,2654.7,2654.1,3.76775]
[1730910974895,4.54783,2654.7,2654.0,0.0753493]
[1730910974896,7.09638,2655.1,2654.4,3.76727]
[1730910975195,7.884908,2655.1,2654.4,3.76727]
[1730910975480,3.76672,2654.9,2654.3,3.76744]
[1730910975692,4.118528,2655.1,2654.3,3.76744]
[1730910975875,3.7667,2654.9,2654.3,3.76744]
[1730910976082,4.1783228,2655.0,2654.2,4.53321]
[1730910976083,3.76678,2654.8,2654.2,4.53321]
[1730910976263,3.76678,2654.8,2654.2,8.30073]
[1730910976466,3.76678,2654.8,2654.2,4.53321]
[1730910976684,3.76702,2654.7,2654.2,0.7657]
[1730910976898,0.376702,2654.6,2654.2,0.7657]
[1730910977401,3.76702,2654.7,2654.2,4.60865411]
[1730910977559,3.76706,2654.6,2654.2,0.7657]
[1730910977759,3.76702,2654.7,2654.2,0.7657]
[1730910977959,0.7688,2654.7,2653.9,0.7782]
[1730910978156,3.76684,2654.8,2654.1,3.76775]
[1730910978355,4.26454656,2655.5,2654.1,3.76775]
[1730910978356,4.53458,2655.5,2655.0,3.76646]
[1730910978600,3.95666278,2656.3,2655.1,0.07532045]
[1730910978601,4.53417,2655.8,2655.1,0.07532045]
[1730910978773,4.53379,2656.1,2655.4,3.76586]
[1730910979102,3.76506,2656.0,2655.5,0.7782]
[1730910979414,4.53379,2656.1,2655.5,0.7782]
[1730910979415,3.76525,2655.9,2655.5,0.7782]
[1730910979773,3.76534,2655.8,2655.5,0.7782]
[1730910979976,3.76525,2655.9,2655.5,0.7782]
[1730910980412,3.76535,2655.8,2655.5,0.7782]
[1730910980617,3.76525,2655.9,2655.5,0.7782]
[1730910980815,7.53056,2655.9,2655.2,4.52611]
[1730910980983,3.7652,2655.9,2655.2,0.76]
[1730910981182,3.76535,2655.8,2655.2,0.76]
[1730910981513,3.76531,2655.9,2655.3,0.07531427]
[1730910981715,3.76531,2655.9,2655.3,3.76595]
[1730910981716,3.76527,2655.9,2655.3,3.76595]
[1730910982086,3.76527,2655.9,2655.3,0.55]
[1730910982317,3.76549,2655.7,2655.3,0.55]
[1730910983011,6.76466,2656.3,2655.4,3.76582]
[1730910983012,3.76519,2656.0,2655.4,3.76582]
[1730910983383,3.0,2656.3,2655.3,1.057616]
[1730910983724,3.76553,2655.7,2655.2,4.5261]
[1730910984216,3.76553,2655.7,2655.0,3.76642]
[1730910984217,0.8005,2655.7,2655.1,0.55]
[1730910984435,3.76514,2656.0,2655.4,4.58913]
[1730910984581,3.76514,2656.0,2655.5,0.55]
[1730910984778,0.8206,2656.6,2655.5,1.440518]
[1730910984985,3.76407,2656.7,2656.1,3.76485]
[1730910985195,3.76407,2656.7,2656.2,3.84005846]
[1730910985420,3.76407,2656.7,2656.0,3.76503]
[1730910985421,3.76407,2656.7,2656.1,0.55]
[1730910985583,3.76443,2656.5,2655.9,4.31519]
[1730910985790,3.76406,2656.7,2656.1,0.55]
[1730910986487,3.76406,2656.7,2656.2,3.76475]
[1730910986682,7.09386,2656.9,2656.2,3.76475]
[1730910986886,6.76394,2656.8,2656.2,3.76475]
[1730910987085,4.46784,2656.8,2656.0,3.76496]
[1730910987325,3.76429,2656.6,2655.8,3.76534]
[1730910987531,3.76429,2656.6,2655.9,0.07528127]
[1730910987731,3.76467,2656.3,2655.8,0.55]
[1730910987929,4.52341,2656.4,2655.7,4.58874]
[1730910988089,3.76478,2656.2,2655.7,4.58874]
[1730910988490,3.76506,2656.0,2655.7,0.8233]
[1730910988812,3.76446,2656.5,2655.7,3.76548]
[1730910989190,3.76446,2656.5,2655.9,3.76515]
[1730910989392,3.76445,2656.5,2655.9,3.76515]
[1730910989940,3.76465,2656.3,2655.8,3.76532]
[1730910990233,3.0,2656.8,2656.0,3.76506]
[1730910990432,3.0,2656.8,2656.2,3.76468]
[1730910990735,7.52826,2656.7,2656.0,8.537896]
[1730910990931,3.76443,2656.5,2655.9,4.57958]
[1730910991137,3.76451,2656.4,2655.9,0.8144]
[1730910991633,7.52867,2656.6,2656.0,0.07529005]
[1730910991835,3.76422,2656.6,2656.1,3.76486]
[1730910992132,0.1307545,2657.4,2656.0,4.23043401]
[1730910992133,3.0,2657.1,2656.6,4.55261]
[1730910992839,3.0,2657.1,2656.6,0.7885]
[1730910993139,3.0,2657.1,2656.7,0.07527001]
[1730910993308,3.0,2657.1,2656.6,4.55257]
[1730910993504,0.1307545,2657.4,2657.2,3.76335]
[1730910993825,0.1307545,2657.4,2657.1,0.55]
[1730910994339,0.1307545,2657.4,2657.1,3.76338]
[1730910994494,0.1307545,2657.4,2657.2,3.76335]
[1730910994696,0.1307545,2657.4,2657.3,5.06671]
[1730910995090,0.1307545,2657.4,2657.3,5.949716]
[1730910995331,0.1307545,2657.4,2657.2,3.76335]
[1730910995533,0.1307545,2657.4,2657.3,3.76321]
[1730910995716,0.1307545,2657.4,2657.3,4.31321]
[1730910995918,0.1307545,2657.4,2657.3,5.09871]
[1730910996291,0.1307545,2657.4,2657.3,5.62252603]
[1730910996637,0.1307545,2657.4,2657.3,6.0372976]
[1730910997020,0.1307545,2657.4,2657.3,6.0272976]
[1730910997223,3.76112,2658.8,2658.1,4.51417]
[1730910997388,3.76085,2659.0,2658.1,0.7521]
[1730910997593,3.7614,2658.6,2658.1,0.7521]
[1730910997925,3.76161,2658.5,2658.1,0.7521]
[1730910998319,7.88876,2659.2,2658.1,0.7521]
[1730910998536,7.88876,2659.2,2657.8,0.52381603]
[1730910998537,3.76161,2658.5,2657.9,0.55]
[1730910998839,3.76105,2658.9,2658.1,3.76197]
[1730910999021,7.52213,2658.9,2658.5,0.55]
[1730910999225,3.76105,2658.9,2658.5,0.55]
[1730910999393,3.76105,2658.9,2658.4,0.8166]
[1730910999592,7.52272,2658.7,2658.2,0.55]
[1730910999797,3.76144,2658.6,2658.2,0.55]
[1730911000031,7.52272,2658.7,2658.2,0.55]
[1730911000237,4.15332604,2659.2,2658.5,4.57804]
[1730911000434,0.8379,2659.6,2658.5,4.57804]
[1730911000435,0.8379,2659.6,2658.5,0.8166]
[1730911000730,3.7611,2658.8,2658.5,0.8166]
[1730911001032,5.10244656,2659.6,2658.2,0.55]
[1730911001033,3.7614,2658.6,2658.2,0.55]
[1730911001227,3.76179,2658.4,2657.6,4.59319]
[1730911001527,3.7619,2658.3,2657.8,0.8304]
[1730911001703,3.76215,2658.1,2657.8,0.8304]
[1730911001932,0.778,2659.0,2657.8,0.8304]
[1730911001933,3.778,2659.0,2657.8,0.8304]
[1730911002203,3.76219,2658.1,2657.8,0.8304]
[1730911002405,3.76236,2657.9,2657.8,0.8304]
[1730911002615,3.76236,2657.9,2657.5,0.7639]
[1730911002902,3.76264,2657.8,2657.6,0.452689]
[1730911003132,3.76236,2657.9,2657.5,0.7639]
[1730911003133,7.52481,2657.9,2657.5,0.7639]
[1730911003328,3.76167,2658.4,2657.6,0.07524379]
[1730911003543,3.76191,2658.3,2657.7,3.76264]
[1730911003707,3.76191,2658.3,2657.7,3.76253]
[1730911003904,3.76195,2658.2,2657.8,0.376253]
[1730911004217,3.76195,2658.2,2657.9,0.55]
[1730911004734,0.7679,2658.8,2657.8,0.376253]
[1730911004735,3.76118,2658.8,2658.1,0.55]
[1730911004894,3.76132,2658.7,2658.1,4.31199]
[1730911005094,3.76132,2658.7,2658.3,0.55]
[1730911005535,3.76139,2658.6,2658.3,0.55]
[1730911005784,7.52289,2658.6,2658.3,0.55]
[1730911006075,0.7516,2659.3,2658.2,0.888762]
[1730911006076,3.76051,2659.3,2658.5,0.55]
[1730911006283,3.76055,2659.2,2658.7,0.55]
[1730911006452,7.52119,2659.2,2658.7,0.55]
[1730911006652,3.76055,2659.2,2658.7,0.55]
[1730911007066,3.7607,2659.1,2658.7,0.55]
[1730911007253,3.76067,2659.1,2658.7,0.55]
[1730911007453,0.7863,2659.6,2658.7,0.55]
[1730911007454,3.76054,2659.2,2658.7,0.55]
[1730911007654,3.76029,2659.4,2658.7,0.55]
[1730911007883,0.7763,2659.6,2658.7,0.55]
[1730911007884,7.52126,2659.2,2658.8,0.7938]
[1730911008086,3.76068,2659.1,2658.8,0.7938]
[1730911008455,3.76004,2659.6,2659.0,3.76073]
[1730911008715,0.8192,2660.3,2658.7,0.55]
[1730911008716,3.4607545,2660.1,2659.2,5.09192]
[1730911008991,3.76069,2659.1,2658.6,5.056019]
[1730911009196,3.76061,2659.2,2658.6,1.294729]
[1730911009358,3.76039,2659.3,2658.7,3.76115]
[1730911009558,3.76033,2659.4,2658.6,1.294729]
[1730911009890,5.08374656,2659.8,2658.8,0.7907]
[1730911010199,3.76033,2659.4,2658.8,4.55178]
[1730911010490,3.76088,2659.0,2658.8,0.7907]
[1730911011199,3.76037,2659.4,2658.8,0.7907]
[1730911011352,3.76039,2659.3,2658.8,4.55177]
[1730911011556,3.76039,2659.3,2658.9,0.55]
[1730911012098,3.76062,2659.2,2658.9,0.55]
[1730911012259,3.76031,2659.4,2658.9,0.55]
[1730911012461,3.76054,2659.2,2658.9,0.55]
[1730911015510,3.75956,2659.9,2659.4,4.648749]
[1730911016060,3.4607545,2660.1,2659.5,0.62518951]
[1730911016289,0.1307545,2660.1,2659.8,7.51918]
[1730911016481,0.1307545,2660.1,2659.9,3.75951]
[1730911017698,0.1307545,2660.1,2660.0,4.58429]
[1730911018013,0.1307545,2660.1,2660.0,5.96867]
[1730911018486,0.1307545,2660.1,2660.0,2.20928]
[1730911018690,0.1307545,2660.1,2660.0,5.96867]
[1730911020301,0.7668,2661.8,2660.0,1.38438]
[1730911020511,3.75744,2661.4,2661.0,0.8218]
[1730911020766,4.26454656,2661.4,2660.3,3.75889]
[1730911020871,4.26454656,2661.4,2660.4,0.55]
[1730911020872,3.75823,2660.9,2660.4,0.55]
[1730911021072,3.75823,2660.9,2660.2,0.8218]
[1730911021073,3.7589,2660.4,2660.2,0.8218]
[1730911021268,3.75892,2660.4,2659.8,4.532]
[1730911021473,3.75953,2659.9,2659.5,0.7724]
[1730911021914,3.7598,2659.8,2659.2,4.55594]
[1730911022133,0.7675,2660.2,2659.2,0.7955]
[1730911022409,0.7675,2660.2,2658.9,3.76091]
[1730911022410,3.7602,2659.5,2658.9,0.7955]
[1730911022613,4.26454656,2659.8,2658.9,0.7955]
[1730911022921,3.76047,2659.3,2658.9,0.7955]
[1730911023089,7.52096,2659.3,2658.9,0.7955]
[1730911023294,3.76047,2659.3,2658.9,0.7955]
[1730911023613,3.76047,2659.3,2659.0,0.07520672]
[1730911023925,3.75978,2659.8,2659.2,3.76052]
[1730911024118,3.75964,2659.9,2659.3,0.376052]
[1730911024417,3.7602,2659.5,2658.9,0.7955]
[1730911024713,3.75939,2660.0,2658.9,4.55645]
[1730911024870,3.76019,2659.5,2658.9,4.55645]
[1730911025072,3.76026,2659.4,2658.9,0.7955]
[1730911025271,3.76065,2659.2,2658.6,0.8261]
[1730911025510,3.76068,2659.1,2658.6,1.66663402]
[1730911025712,3.76065,2659.2,2658.7,3.76122]
[1730911025923,3.75996,2659.6,2658.8,3.83618917]
[1730911026077,3.76012,2659.5,2658.9,3.76095]
[1730911026278,3.76064,2659.2,2658.7,0.07520055]
[1730911026475,3.76064,2659.2,2658.7,4.76850502]
[1730911026771,3.76064,2659.2,2658.7,4.76842502]
[1730911026976,7.52128,2659.2,2658.7,0.93209447]
[1730911027207,3.76064,2659.2,2658.7,4.69332447]
[1730911027416,3.76064,2659.2,2658.7,0.93209447]
[1730911027610,7.52128,2659.2,2658.6,4.58738]
[1730911027802,7.52129,2659.2,2658.6,4.58738]
[1730911028009,3.76064,2659.2,2658.6,0.8261]
[1730911028311,3.76088,2659.0,2658.5,3.81782017]
[1730911028520,7.52177,2659.0,2658.5,3.81782017]
[1730911028722,3.76131,2658.7,2658.5,0.05640017]
[1730911028924,3.76137,2658.6,2658.5,0.05640017]
[1730911029074,3.76137,2658.6,2657.7,3.76258]
[1730911029075,3.76176,2658.4,2657.8,3.7625]
[1730911029276,3.76192,2658.3,2657.7,3.76258]
[1730911029509,3.76194,2658.2,2657.8,0.455148]
[1730911029972,3.76151,2658.5,2657.6,0.7889]
[1730911030275,3.76198,2658.2,2657.6,0.86413968]
[1730911030477,3.76153,2658.5,2657.9,3.76223]
[1730911030806,4.55701,2658.6,2658.0,0.07523591]
[1730911030807,3.76167,2658.4,2658.0,0.07523591]
[1730911030980,3.76181,2658.3,2657.7,7.52512]
[1730911031182,3.76181,2658.3,2657.8,0.831402]
[1730911031678,3.0,2658.8,2658.0,4.31215]
[1730911032046,3.76135,2658.7,2658.1,3.83730786]
[1730911032187,3.76135,2658.7,2658.2,3.76193]
[1730911032390,4.54938,2658.9,2658.3,3.83693783]
[1730911032591,8.31043,2658.9,2658.3,4.67377461]
[1730911032889,3.76118,2658.8,2658.3,0.91206461]
[1730911033077,3.76075,2659.1,2658.4,0.55]
[1730911033278,3.76075,2659.1,2658.5,3.76138]
[1730911033279,3.7607,2659.1,2658.5,3.76138]
[1730911033485,3.7607,2659.1,2658.5,7.5228]
[1730911033681,3.7607,2659.1,2658.5,4.65234368]
[1730911033991,3.7607,2659.1,2658.5,3.76138]
[1730911034488,3.76097,2658.9,2658.3,4.59854678]
[1730911034824,3.76097,2658.9,2658.4,3.83688411]
[1730911035117,3.76097,2658.9,2658.3,3.76171]
[1730911035118,3.76068,2659.1,2658.5,3.76143]
[1730911035616,3.76068,2659.1,2658.5,7.52286]
[1730911035858,3.76068,2659.1,2658.5,3.76143]
[1730911036516,3.76068,2659.1,2658.5,7.52287]
[1730911036713,3.76068,2659.1,2658.5,3.76143]
[1730911036917,3.76056,2659.2,2658.7,3.76123]
[1730911037811,8.78034656,2659.3,2658.7,3.76123]
[1730911037812,0.7554,2659.3,2658.8,3.76107]
[1730911038017,3.7602,2659.5,2658.8,3.76107]
[1730911038018,3.76012,2659.5,2658.9,3.83602446]
[1730911038553,3.76025,2659.4,2658.9,3.83602446]
[1730911040133,3.33,2659.6,2658.9,0.99101851]
[1730911040467,3.76006,2659.6,2659.0,3.76073]
[1730911040753,3.76006,2659.6,2658.8,0.8086]
[1730911040754,3.76048,2659.3,2658.8,0.8086]
[1730911040960,3.76048,2659.3,2658.8,4.64490372]
[1730911041471,3.76048,2659.3,2658.8,8.40599372]
[1730911041763,3.76029,2659.4,2658.9,3.76093]
[1730911042460,4.15268133,2659.8,2659.2,3.76044]
[1730911042630,3.75984,2659.7,2659.1,8.29895]
[1730911042836,3.75984,2659.7,2659.2,3.76048]
[1730911043385,3.76046,2659.3,2658.7,0.8102]
[1730911043603,3.76046,2659.3,2658.7,4.57133]
[1730911043891,3.76046,2659.3,2658.8,0.07521275]
[1730911044055,3.76053,2659.2,2658.7,4.57133]
[1730911044445,3.76046,2659.3,2658.8,3.83630408]
[1730911044648,3.76004,2659.6,2659.1,3.76058]
[1730911044877,0.8278,2659.7,2659.1,3.76057]
[1730911044878,4.58763,2659.7,2659.1,3.76057]
[1730911045083,4.58763,2659.7,2659.2,3.76048]
[1730911045384,0.39293133,2659.8,2659.3,0.7879]
[1730911045904,4.15262133,2659.8,2659.3,4.54816]
[1730911046205,0.39293133,2659.8,2659.3,5.002976]
[1730911046403,0.39293133,2659.8,2659.7,3.75982]
[1730911046563,3.76005,2659.6,2659.1,3.76058]
[1730911046763,3.7606,2659.2,2658.5,0.7971]
[1730911046989,3.7606,2659.2,2658.8,3.76108]
[1730911047192,4.55793,2659.6,2658.9,0.07521056]
[1730911047504,8.31799,2659.6,2659.0,3.7608]
[1730911047711,3.76012,2659.5,2659.0,3.7608]
[1730911047995,4.55786,2659.6,2659.1,3.83584305]
[1730911048161,4.55786,2659.6,2659.1,3.76064]
[1730911048704,8.31791,2659.6,2659.1,3.76064]
[1730911048999,8.31789,2659.6,2659.1,3.76064]
[1730911049198,3.76013,2659.5,2659.1,3.76064]
[1730911049501,6.75964,2659.9,2659.3,7.52055]
[1730911049659,3.7597,2659.8,2659.3,3.76025]
[1730911050796,3.7597,2659.8,2659.3,7.52055]
[1730911051040,4.51085,2660.3,2659.7,3.75968]
[1730911051247,3.75906,2660.3,2659.7,3.75968]
[1730911051451,3.75907,2660.3,2659.7,3.75968]
[1730911051903,2.35476838,2660.6,2659.7,0.7758]
[1730911051904,0.39283066,2660.6,2659.7,0.7758]
[1730911052103,0.39283066,2660.6,2659.5,0.01]
[1730911052104,0.39283066,2660.6,2660.5,3.75869]
[1730911052436,4.133174,2661.4,2660.9,3.75809]
[1730911052639,0.7885,2661.7,2661.1,3.75783]
[1730911052824,3.75687,2661.8,2661.2,0.07514173]
[1730911053020,4.53793,2662.0,2661.4,3.75739]
[1730911053208,4.53793,2662.0,2661.5,0.07513779]
[1730911053403,8.29463,2662.0,2661.5,0.07513779]
[1730911053754,8.29463,2662.0,2661.3,3.75742]
[1730911053755,3.75672,2661.9,2661.3,3.75742]
[1730911053917,3.75639,2662.2,2661.6,3.75711]
[1730911054120,3.75601,2662.4,2661.7,3.75688]
[1730911054335,3.75588,2662.5,2661.9,4.5257]
[1730911054860,7.08573,2662.6,2661.9,4.5257]
[1730911055159,3.75603,2662.4,2661.9,0.769]
[1730911055516,3.75616,2662.3,2661.9,0.769]
[1730911055713,3.75667,2662.0,2661.5,0.8329]
[1730911055959,4.26454656,2661.9,2661.2,0.8329]
[1730911056119,0.769,2661.5,2660.5,1.208769]
[1730911056450,3.75818,2660.9,2660.5,0.8329]
[1730911056659,3.75826,2660.8,2660.5,0.8329]
[1730911057028,3.75806,2661.0,2660.5,0.8329]
[1730911057425,4.26454656,2661.3,2660.5,0.8329]
[1730911057666,3.75786,2661.1,2660.5,0.8329]
[1730911057816,3.75783,2661.2,2660.5,0.8329]
[1730911058756,3.75826,2660.8,2660.2,3.75904]
[1730911058929,3.75893,2660.4,2660.1,0.7555]
[1730911059133,3.75899,2660.3,2659.8,4.51507]
[1730911059541,3.75925,2660.2,2659.8,0.7555]
[1730911059854,3.75963,2659.9,2659.3,4.51586]
[1730911060064,3.75936,2660.1,2659.6,3.75995]
[1730911060413,3.75936,2660.1,2659.4,4.211806]
[1730911060617,3.75936,2660.1,2659.5,3.76002]
[1730911060873,3.75948,2660.0,2659.4,4.211806]
[1730911061027,3.75936,2660.1,2659.4,4.211806]
[1730911061214,3.75954,2659.9,2659.4,0.451586]
[1730911061417,3.75954,2659.9,2659.4,4.211786]
[1730911062062,3.75933,2660.1,2659.5,0.07519126]
[1730911062271,3.75954,2659.9,2659.5,0.07519126]
[1730911063564,3.75954,2659.9,2659.4,4.211736]
[1730911063758,3.75975,2659.8,2659.3,0.7555]
[1730911064275,3.75931,2660.1,2659.3,0.7555]
[1730911064483,3.75931,2660.1,2659.4,3.76016]
[1730911064662,3.75983,2659.7,2659.3,0.7555]
[1730911064836,3.76005,2659.6,2659.0,0.7652]
[1730911065043,3.76033,2659.4,2659.0,0.7652]
[1730911065338,4.96940984,2660.1,2658.2,0.056424]
[1730911065339,3.75982,2659.7,2659.1,0.07520487]
[1730911065565,3.75966,2659.9,2659.2,0.8053]
[1730911065738,3.75911,2660.2,2659.8,0.8053]
[1730911066744,3.75933,2660.1,2659.8,0.8053]
[1730911067642,3.75859,2660.6,2660.1,3.75925]
[1730911067872,3.75836,2660.8,2660.2,3.83427101]
[1730911068194,0.39271588,2662.4,2661.3,0.8185]
[1730911068483,0.1307545,2662.8,2661.9,4.57512]
[1730911068782,3.75592,2662.5,2661.9,4.57521]
[1730911069293,0.1307545,2662.8,2662.7,5.09308]
[1730911069588,0.1307545,2662.8,2662.7,4.54308]
[1730911070104,0.1307545,2662.8,2662.3,3.75613]
[1730911070314,3.75559,2662.7,2662.3,0.7875]
[1730911070465,3.75558,2662.7,2661.8,0.7653]
[1730911070804,3.75601,2662.4,2661.8,0.7653]
[1730911070965,0.1307545,2662.8,2662.0,0.55]
[1730911071162,0.1307545,2662.8,2662.5,0.7823]
[1730911071363,0.1307545,2662.8,2662.7,4.30558]
[1730911071965,0.1307545,2662.8,2662.5,0.7823]
[1730911072165,0.1307545,2662.8,2662.5,4.53815]
[1730911072369,0.0307545,2662.8,2662.5,4.53815]
[1730911072602,0.0307545,2662.8,2662.5,0.7823]
[1730911073105,0.0307545,2662.8,2662.2,4.53279]
[1730911073305,3.7862045,2662.8,2662.2,4.53279]
[1730911073508,0.0307545,2662.8,2662.2,4.53279]
[1730911073668,0.0307545,2662.8,2662.3,0.07510804]
[1730911074099,3.75559,2662.7,2662.3,0.07510804]
[1730911074308,3.75573,2662.6,2662.2,1.605431]
[1730911074612,3.75559,2662.7,2662.2,0.7765]
[1730911074835,3.7862145,2662.8,2662.2,4.53279]
[1730911074969,3.75559,2662.7,2662.2,0.7765]
[1730911075289,3.75574,2662.6,2662.2,0.7765]
[1730911075465,3.7862145,2662.8,2662.2,0.7765]
[1730911075665,3.7862145,2662.8,2662.2,1.60544]
[1730911075929,3.75583,2662.6,2662.2,0.7765]
[1730911076600,3.7862545,2662.8,2661.8,0.8067]
[1730911076805,3.75618,2662.3,2661.8,0.8067]
[1730911077103,3.7862545,2662.8,2661.8,0.8067]
[1730911077331,3.7862545,2662.8,2660.5,4.96940984]
[1730911077332,3.75724,2661.6,2661.1,0.8067]
[1730911078429,3.75724,2661.6,2661.2,0.07514059]
[1730911079485,3.75693,2661.8,2661.1,4.56445]
[1730911079692,7.51388,2661.8,2661.1,4.56445]
[1730911080011,3.75693,2661.8,2661.2,4.589923]
[1730911080208,3.75605,2662.4,2661.8,3.75682]
[1730911080388,3.75605,2662.4,2661.8,7.51358]
[1730911080584,3.75605,2662.4,2661.9,0.07512334]
[1730911080825,3.75605,2662.4,2661.8,3.75676]
[1730911081247,3.75615,2662.3,2661.8,3.75676]
[1730911081545,3.75615,2662.3,2661.4,3.75735]
[1730911081546,3.75645,2662.1,2661.4,3.75735]
[1730911081747,3.75645,2662.1,2661.5,3.83235964]
[1730911082047,3.75572,2662.6,2661.2,4.589813]
[1730911082048,3.75696,2661.8,2661.2,4.589813]
[1730911082458,3.75751,2661.4,2660.8,3.75819]
[1730911082625,3.75751,2661.4,2660.8,7.51638]
[1730911083012,3.75751,2661.4,2660.9,3.7581]
[1730911083514,7.51448,2661.6,2660.9,3.7581]
[1730911083715,7.51448,2661.6,2660.9,7.5162]
[1730911083915,3.75729,2661.5,2661.0,0.75162]
[1730911084151,3.75755,2661.4,2661.0,0.75162]
[1730911084322,3.75755,2661.4,2660.7,8.30411]
[1730911084323,3.75755,2661.4,2660.9,3.75811]
[1730911084877,3.75755,2661.4,2661.0,0.0751472]
[1730911085045,7.51447,2661.6,2661.0,0.0751472]
[1730911085222,3.75729,2661.5,2661.0,3.8331272]
[1730911085422,3.75729,2661.5,2661.0,0.83426292]
[1730911086764,3.75729,2661.5,2660.9,3.75803]
[1730911086765,3.75764,2661.3,2660.7,4.54584]
[1730911087165,3.75764,2661.3,2660.8,0.07515243]
[1730911087471,3.75764,2661.3,2660.8,3.83338243]
[1730911087771,3.65764,2661.3,2660.8,3.83338243]
[1730911087925,3.65764,2661.3,2660.8,4.67130367]
[1730911088122,3.65764,2661.3,2660.8,0.91307367]
[1730911088511,3.65764,2661.3,2660.8,4.67130367]
[1730911088771,3.75707,2661.7,2661.1,3.75777]
[1730911088923,3.75707,2661.7,2661.2,0.07514429]
[1730911089120,0.8149,2662.1,2661.5,3.75726]
[1730911089362,0.8149,2662.1,2661.3,0.7829]
[1730911089363,3.75674,2661.9,2661.3,0.7829]
[1730911089663,3.75674,2661.9,2660.5,4.98940984]
[1730911089664,0.8149,2662.1,2661.0,0.7829]
[1730911089975,4.57146,2662.1,2661.5,3.75718]
[1730911090265,4.57146,2662.1,2661.6,0.0751352]
[1730911090434,3.75656,2662.1,2661.5,3.75718]
[1730911090640,3.75662,2662.0,2661.5,3.75718]
[1730911091059,3.75645,2662.1,2661.6,3.75713]
[1730911091327,4.5525445,2662.8,2661.7,0.84353529]
[1730911091562,7.51335,2662.0,2661.5,0.75897753]
[1730911091767,3.75673,2661.9,2661.4,4.52569]
[1730911092137,3.75666,2662.0,2661.4,8.28302]
[1730911092473,3.75673,2661.9,2661.4,4.52569]
[1730911092657,3.75666,2662.0,2661.4,4.52569]
[1730911092862,3.75666,2662.0,2661.5,0.07513532]
[1730911093668,3.75666,2662.0,2661.5,3.75724]
[1730911093825,7.51335,2662.0,2661.5,3.75724]
[1730911094025,3.75673,2661.9,2661.4,4.60094899]
[1730911095036,3.75686,2661.8,2661.4,0.84353899]
[1730911095372,3.75686,2661.8,2661.4,4.52581]
[1730911095665,7.51336,2662.0,2661.4,8.28322]
[1730911096032,7.51336,2662.0,2661.1,0.7853]
[1730911096033,3.75751,2661.4,2661.1,0.7853]
[1730911096181,3.75685,2661.9,2661.3,3.75749]
[1730911096388,3.75666,2662.0,2660.9,0.07514348]
[1730911096541,3.0,2662.0,2661.5,3.75716]
[1730911096741,3.75658,2662.0,2661.4,0.7904]
[1730911097048,3.75671,2661.9,2661.4,4.54777]
[1730911097248,3.75686,2661.8,2661.4,0.7904]
[1730911097454,3.75686,2661.8,2661.3,3.83261188]
[1730911097775,3.75686,2661.8,2661.4,3.7574]
[1730911098242,3.75686,2661.8,2661.3,3.83269188]
[1730911098444,3.75661,2662.0,2661.3,3.83269188]
[1730911098657,3.75673,2661.9,2661.3,3.83269188]
[1730911098968,3.75673,2661.9,2661.3,7.59015188]
[1730911099173,3.75673,2661.9,2661.3,7.59007188]
[1730911099951,3.75671,2661.9,2661.3,3.83260188]
[1730911100863,3.75671,2661.9,2661.3,7.59008188]
[1730911101257,3.75671,2661.9,2661.3,3.83260188]
[1730911101448,3.75671,2661.9,2661.4,3.7574]
[1730911102149,3.75689,2661.8,2661.3,3.75746]
[1730911102574,3.75671,2661.9,2661.3,7.5149]
[1730911102575,7.51353,2661.9,2661.3,7.5149]
[1730911102973,3.75671,2661.9,2661.3,7.5149]
[1730911103576,3.75671,2661.9,2661.4,3.75738]
[1730911104792,0.8146,2661.8,2661.4,3.75738]
[1730911104991,3.0,2662.1,2661.8,3.75675]
[1730911105194,0.01,2662.5,2661.7,0.07513174]
[1730911105348,3.0,2662.1,2661.7,3.83211174]
[1730911105978,6.75647,2662.1,2661.6,3.75708]
[1730911106293,6.75647,2662.1,2661.6,3.75707]
[1730911106757,6.75647,2662.1,2661.6,7.51411]
[1730911107153,3.0,2662.1,2661.7,3.75698]
[1730911107370,3.75611,2662.4,2661.7,3.75698]
[1730911107371,6.75631,2662.2,2661.7,3.75698]
[1730911109017,0.39187685,2662.6,2661.8,3.75684]
[1730911109221,0.39187685,2662.6,2662.1,3.75642]
[1730911109368,4.14761685,2662.6,2662.2,3.75628]
[1730911109681,0.0307545,2662.8,2662.4,3.75588]